fUST/lending_fUST_20250813
["ID","MTS","AMOUNT","RATE_DAILY","PERIOD"]
[378873447,1755059438844,-229.44759442,0.00019178,2]
[378873448,1755059438854,-200.0,0.00019249,15]
[378873449,1755059438864,-200.0,0.00019249,15]
[378873450,1755059438873,-200.0,0.00019249,15]
[378873451,1755059438883,-200.0,0.00019249,15]
[378873452,1755059438892,-303.33970953,0.00019335,2]
[378873453,1755059438902,-502.09600426,0.00019373,2]
[378873454,1755059438912,-2407.59184678,0.00019449,2]
[378873455,1755059438922,-1000.0,0.00019521,2]
[378873456,1755059438931,-1000.0,0.00019521,2]
[378873457,1755059438940,-1000.0,0.00019521,2]
[378873458,1755059438950,-1000.0,0.00019521,2]
[378873459,1755059438961,-1000.0,0.00019521,2]
[378873460,1755059438970,-423.97254752,0.00019527,2]
[378873461,1755059438980,-421.96587557,0.00019897,2]
[378873462,1755059438989,-44742.42891741,0.000199,2]
[378873463,1755059438999,-73238.5586545,0.0001999,2]
[378873464,1755059439008,-160.0,0.0002,3]
[378873465,1755059439018,-6009.00629604,0.0002,2]
[378873466,1755059439027,-2019.0,0.00020001,2]
[378873467,1755059439037,-1500.0,0.00020068,2]
[378873468,1755059439047,-1500.0,0.00020068,2]
[378873469,1755059439057,-1500.0,0.00020068,2]
[378873470,1755059439067,-1500.0,0.00020068,2]
[378873471,1755059439077,-1500.0,0.00020068,2]
[378873472,1755059439086,-151.0,0.00020317,2]
[378873473,1755059439096,-18502.69577858,0.00020317,2]
[378873474,1755059439106,-434.1,0.0002032,3]
[378873475,1755059439115,-5000.0,0.00020555,2]
[378873476,1755059439124,-420.0,0.00020573,2]
[378873477,1755059439133,-2000.0,0.00020616,2]
[378873478,1755059439143,-2000.0,0.00020616,2]
[378873479,1755059439152,-2000.0,0.00020616,2]
[378873480,1755059439162,-1982.40057088,0.00020616,2]
[378873481,1755059439171,-2000.0,0.00020616,2]
[378873482,1755059439181,-1680.0,0.00020673,2]
[378873483,1755059439190,-501.21322098,0.00020733,2]
[378873484,1755059439200,-421.96587557,0.00020921,2]
[378873485,1755059439210,-5000.0,0.00020959,2]
[378873486,1755059439220,-636.0,0.00021093,2]
[378873487,1755059439229,-5000.0,0.00021111,2]
[378873488,1755059439239,-5000.0,0.00021115,2]
[378873489,1755059439249,-200.0,0.00021138,15]
[378873490,1755059439259,-200.0,0.00021138,15]
[378873491,1755059439268,-200.0,0.00021138,15]
[378873492,1755059439278,-200.0,0.00021138,15]
[378873493,1755059439288,-320.0,0.00021138,15]
[378873494,1755059439298,-2500.0,0.00021164,2]
[378873495,1755059439307,-699.69660894,0.00021164,2]
[378873496,1755059439317,-2500.0,0.00021164,2]
[378873497,1755059439326,-2192.68304261,0.00021164,2]
[378873498,1755059439335,-160.0,0.00021222,2]
[378873499,1755059439345,-160.0,0.00021251,2]
[378873500,1755059439354,-160.0,0.00021251,2]
[378873501,1755059439363,-528.09767282,0.00021251,2]
[378873502,1755059439373,-160.0,0.00021251,2]
[378873503,1755059439383,-232.03317797,0.00021251,2]
[378873504,1755059439393,-160.0,0.00021251,2]
[378873505,1755059439402,-216.72950928,0.00021251,2]
[378873506,1755059439412,-461.84428375,0.00021251,2]
[378873507,1755059439421,-160.0,0.00021251,2]
[378873508,1755059439430,-160.0,0.00021251,2]
[378873509,1755059439440,-215.55264861,0.00021251,2]
[378873510,1755059439450,-417.15472785,0.00021251,2]
[378873511,1755059439460,-843.29866057,0.00021251,2]
[378873512,1755059439470,-160.0,0.00021251,2]
[378873513,1755059439479,-247.7,0.00021341,2]
[378873515,1755059439489,-915.52,0.000215,2]
[378873516,1755059439499,-500.0,0.00021617,2]
[378873517,1755059439507,-500.0,0.00021617,2]
[378873518,1755059439517,-500.0,0.0002162,2]
[378873519,1755059439526,-44742.42891733,0.00021655,2]
[378873520,1755059439535,-500.0,0.00021673,2]
[378873521,1755059439545,-500.88170187,0.00021673,2]
[378873522,1755059439555,-288.21781324,0.00021686,2]
[378873523,1755059439564,-19187.29552238,0.00021686,2]
[378873524,1755059439574,-500.0,0.00021692,2]
[378873525,1755059439584,-1617.98448713,0.00021712,2]
[378873526,1755059439593,-260.0,0.0002177,2]
[378873527,1755059439604,-6722.14850269,0.00021837,2]
[378873528,1755059439618,-500.0,0.00021917,2]
[378873529,1755059439627,-200.0,0.00021918,2]
[378873530,1755059439638,-421.96587557,0.00021944,2]
[378873531,1755059439650,-235.65080887,0.00021973,2]
[378873532,1755059439660,-500.0,0.00021973,2]
[378873533,1755059439669,-500.0,0.00021973,2]
[378873534,1755059439680,-219.12395559,0.00021973,2]
[378873536,1755059439691,-500.0,0.00021973,2]
[378873538,1755059439700,-500.0,0.00021973,2]
[378873539,1755059439710,-500.0,0.00021973,2]
[378873540,1755059439719,-500.0,0.00021973,2]
[378873541,1755059439729,-517.70336959,0.00021973,2]
[378873542,1755059439738,-500.0,0.00021973,2]
[378873543,1755059439748,-500.0,0.00021973,2]
[378873544,1755059439757,-546.90934465,0.00021973,2]
[378873545,1755059439767,-500.62477378,0.00021973,2]
[378873546,1755059439776,-500.0,0.00021973,2]
[378873547,1755059439786,-500.0,0.00021973,2]
[378873548,1755059439796,-514.0505241,0.00021973,2]
[378873550,1755059439806,-500.0,0.00021973,2]
[378873552,1755059439816,-500.0,0.00021973,2]
[378873554,1755059439826,-500.0,0.00021973,2]
[378873556,1755059439836,-500.0,0.00021973,2]
[378873558,1755059439846,-500.0,0.00021973,2]
[378873560,1755059439856,-500.0,0.00021973,2]
[378873562,1755059439865,-504.6401881,0.00021973,2]
[378873564,1755059439875,-500.0,0.00021973,2]
[378873566,1755059439884,-5054.49,0.00022,7]
[378873568,1755059439894,-54891.49,0.00022,2]
[378873570,1755059439904,-55321.57,0.00022,7]
[378873572,1755059439913,-12298.94,0.00022,7]
[378873574,1755059439923,-169.0,0.00022,2]
[378873576,1755059439933,-528.09767282,0.00022,7]
[378873577,1755059439943,-160.0,0.00022,7]
[378873579,1755059439952,-417.15472785,0.00022,7]
[378873581,1755059439962,-215.55264861,0.00022,7]
[378873583,1755059439972,-220.18,0.00022,2]
[378873585,1755059439981,-247.7,0.00022049,3]
[378873587,1755059439991,-1000.0,0.00022165,2]
[378873589,1755059440001,-1000.0,0.00022168,2]
[378873591,1755059440011,-2791.02,0.00022191,4]
[378873593,1755059440020,-1000.0,0.00022221,2]
[378873595,1755059440029,-360.0,0.00022318,2]
[378873597,1755059440038,-587.0,0.00022428,2]
[378873599,1755059440050,-250.0,0.00022521,2]
[378873601,1755059440059,-501.20997397,0.00022521,2]
[378873603,1755059440068,-1000.0,0.00022521,2]
[378873605,1755059440078,-501.47633813,0.00022521,2]
[378873607,1755059440087,-1000.0,0.00022521,2]
[378873609,1755059440096,-1000.0,0.00022521,2]
[378873611,1755059440106,-1000.0,0.00022521,2]
[378873613,1755059440115,-504.12882697,0.00022521,2]
[378873615,1755059440125,-1000.0,0.00022521,2]
[378873617,1755059440134,-1000.0,0.00022521,2]
[378873619,1755059440143,-1000.0,0.00022521,2]
[378873621,1755059440152,-1000.0,0.00022521,2]
[378873623,1755059440161,-501.93147384,0.00022521,2]
[378873625,1755059440172,-504.43596697,0.00022521,2]
[378873627,1755059440181,-1000.0,0.00022521,2]
[378873629,1755059440190,-600.32016496,0.00022521,2]
[378873631,1755059440199,-169.05348582,0.00022598,2]
[378873633,1755059440209,-158.46101566,0.00022603,2]
[378873635,1755059440219,-1610.0,0.00022646,2]
[378873637,1755059440229,-1500.0,0.00022713,2]
[378873639,1755059440238,-1500.0,0.00022716,2]
[378873641,1755059440247,-247.7,0.00022756,3]
[378873643,1755059440257,-953.56104685,0.00022768,2]
[378873645,1755059440266,-460.0,0.00022866,2]
[378873646,1755059440275,-162.90863975,0.00022959,2]
[378873648,1755059440286,-421.96587557,0.00022968,2]
[378873650,1755059440296,-180.98771857,0.00022986,8]
[378873652,1755059440305,-250.0,0.00023,10]
[378873654,1755059440315,-160.0,0.00023,2]
[378873656,1755059440324,-9584.42162702,0.00023055,2]
[378873658,1755059440333,-350.0,0.00023068,2]
[378873660,1755059440343,-1218.2584306,0.00023068,2]
[378873662,1755059440352,-1500.0,0.00023068,2]
[378873664,1755059440361,-226.38570943,0.00023068,2]
[378873666,1755059440370,-600.78181686,0.00023068,2]
[378873668,1755059440379,-137.17133568,0.00023068,2]
[378873691,1755059440603,-728.42581903,0.00023068,2]
[378873936,1755059443091,-1006.95892114,0.00021214,2]
[378873952,1755059443253,-1144.04107886,0.00021214,2]
[378873953,1755059443263,-767.73016241,0.00023068,2]
[378873955,1755059443272,-1340.04870995,0.00023068,2]
[378873957,1755059443281,-208.08566655,0.00023068,2]
[378873969,1755059443408,-250.0,0.000231,10]
[378873970,1755059443418,-250.0,0.000232,10]
[378873971,1755059443427,-200.0,0.00023212,15]
[378873973,1755059443437,-200.0,0.00023212,15]
[378873975,1755059443446,-200.0,0.00023212,15]
[378873977,1755059443455,-200.0,0.00023212,15]
[378873979,1755059443465,-200.0,0.00023212,15]
[378873981,1755059443475,-200.0,0.00023212,15]
[378873983,1755059443484,-366.0,0.00023212,15]
[378873985,1755059443494,-2066.34,0.00023224,2]
[378873987,1755059443503,-173.080148,0.00023232,7]
[378873989,1755059443512,-162.90863975,0.0002326,2]
[378873991,1755059443521,-1643.14707113,0.00023261,2]
[378874272,1755059446229,-313.317136,0.00023261,2]
[378874279,1755059446286,-43.53579287,0.00023261,2]
[378874281,1755059446295,-823.31815043,0.00023264,2]
[378876400,1755059626153,169.83,0.00023,60]
[378876401,1755059646242,152.18,0.00023,60]
[378876405,1755060309365,164.285253,0.00013699,2]
[378876462,1755060632301,-261.3689068,0.00018571,2]
[378876464,1755060632310,-203.1804032,0.00018758,2]
[378876466,1755060632320,-1200.0,0.00018846,2]
[378876468,1755060632329,-300.0,0.00018847,2]
[378876470,1755060632338,-300.0,0.00018847,2]
[378876472,1755060632347,-300.0,0.00018847,2]
[378876474,1755060632356,-300.0,0.00018847,2]
[378876476,1755060632366,-1200.0,0.00018847,2]
[378876478,1755060632375,-151.0,0.00018848,2]
[378876480,1755060632384,-17842.522448,0.00018848,2]
[378876483,1755060632393,-434.1,0.0001885,3]
[378876485,1755060632402,-500.0,0.00018859,2]
[378876487,1755060632411,-498.37837912,0.00018859,2]
[378876489,1755060632421,-211.41519317,0.00018859,2]
[378876491,1755060632430,-214.83482741,0.00018859,2]
[378876493,1755060632439,-513.27856239,0.00018859,2]
[378876495,1755060632448,-222.04653311,0.00018859,2]
[378876497,1755060632457,-73060.7147433,0.0001886,2]
[378876500,1755060632477,-286.6611966,0.0001886,2]
[378876502,1755060632487,-3150.34220275,0.0001886,2]
[378876771,1755060638330,-1479.30654129,0.0001886,2]
[378876949,1755060640222,-1102.26819589,0.0001886,2]
[378877265,1755060643313,-4664.9,0.0001886,2]
[378877267,1755060643325,-357.23038376,0.0001886,2]
[378877584,1755060646512,-428.51014532,0.0001886,2]
[378886624,1755061218995,164.285253,0.00013699,2]
[378886625,1755061295782,1453.97855034,0.00015,2]
[378886675,1755061832571,-438.0,0.00018759,2]
[378886677,1755061832581,-300.0,0.00018759,2]
[378886679,1755061832591,-1200.0,0.00018759,2]
[378886681,1755061832601,-6180.62143043,0.0001876,2]
[378886695,1755061832723,-6922.05064848,0.0001876,2]
[378886697,1755061832733,-303.30934763,0.000189,2]
[378886699,1755061832743,-1173.76963019,0.000189,2]
[378886701,1755061832752,-303.30934763,0.00019089,2]
[378886703,1755061832762,-200.0,0.00019134,15]
[378886705,1755061832771,-200.0,0.00019134,15]
[378886707,1755061832781,-200.0,0.00019134,15]
[378886709,1755061832791,-200.0,0.00019134,15]
[378886711,1755061832802,-1389.34498005,0.00019178,2]
[378886754,1755061838320,-481.3250708,0.00019178,2]
[378886760,1755061838374,-3129.32994915,0.00019178,2]
[378886762,1755061838383,-229.44759442,0.00019178,2]
[378886764,1755061838393,-303.30934763,0.00019278,2]
[378886766,1755061838402,-1978.40695653,0.00019465,2]
[378886768,1755061838412,-303.30934763,0.00019467,2]
[378886770,1755061838422,-303.30934763,0.00019656,2]
[378886772,1755061838432,-437.70320406,0.00019845,4]
[378886774,1755061838444,-17.26081739,0.00019845,4]
[378886776,1755061838453,-301.368902,0.00019863,2]
[378886778,1755061838463,-2448.99610495,0.000199,2]
[378887834,1755061849688,-42635.22438954,0.000199,2]
[378887835,1755061849697,-160.0,0.0002,3]
[378887836,1755061849706,-454.96402145,0.00020034,4]
[378887837,1755061849716,-454.96402145,0.00020223,4]
[378887838,1755061849725,-575.10519493,0.00020412,4]
[378887839,1755061849735,-420.0,0.00020452,2]
[378887840,1755061849745,-364.65906891,0.00020483,2]
[378887841,1755061849754,-500.0,0.00020483,2]
[378887842,1755061849763,-1680.0,0.00020552,2]
[378887843,1755061849772,-2151.0,0.00020629,2]
[378887844,1755061849781,-636.0,0.00020629,2]
[378887845,1755061849790,-972.0,0.00020629,2]
[378887846,1755061849800,-528.09767282,0.00020905,10]
[378887847,1755061849809,-2791.02,0.00020915,2]
[378887848,1755061849819,-288.21781324,0.00020915,2]
[378887849,1755061849829,-17842.522448,0.00020915,2]
[378887850,1755061849838,-559.83281893,0.00020923,2]
[378887851,1755061849848,-200.0,0.00021012,15]
[378887852,1755061849858,-200.0,0.00021012,15]
[378887853,1755061849868,-200.0,0.00021012,15]
[378887855,1755061849877,-200.0,0.00021012,15]
[378887857,1755061849887,-320.0,0.00021012,15]
[378887859,1755061849896,-1000.0,0.00021031,2]
[378887861,1755061849906,-500.0,0.00021156,2]
[378887863,1755061849915,-501.63243074,0.00021156,2]
[378887865,1755061849924,-500.0,0.0002132,2]
[378887867,1755061849934,-500.0,0.0002132,2]
[378887869,1755061849943,-528.09767282,0.0002132,2]
[378887871,1755061849952,-160.0,0.0002132,2]
[378887873,1755061849961,-216.72950928,0.0002132,2]
[378887875,1755061849970,-232.03317797,0.0002132,2]
[378887877,1755061849979,-160.0,0.0002132,2]
[378887879,1755061849988,-417.15472785,0.0002132,2]
[378887881,1755061849997,-461.84428375,0.0002132,2]
[378887883,1755061850007,-160.0,0.0002132,2]
[378887885,1755061850016,-160.0,0.0002132,2]
[378887887,1755061850025,-215.55264861,0.0002132,2]
[378887889,1755061850035,-160.0,0.0002132,2]
[378887891,1755061850045,-160.0,0.0002132,2]
[378887893,1755061850054,-160.0,0.0002132,2]
[378887895,1755061850064,-843.29866057,0.0002132,2]
[378887897,1755061850074,-500.0,0.0002132,2]
[378887899,1755061850083,-501.68822029,0.00021423,2]
[378887901,1755061850092,-915.52,0.000215,2]
[378887903,1755061850101,-1500.0,0.00021579,2]
[378887905,1755061850110,-500.0,0.00021594,2]
[378887907,1755061850120,-500.0,0.00021594,2]
[378887909,1755061850129,-377.56112581,0.00021604,2]
[378887911,1755061850139,-163.15241197,0.00021654,2]
[378887913,1755061850148,-45084.22049426,0.00021655,2]
[378887915,1755061850157,-1000.0,0.00021704,2]
[378887917,1755061850167,-500.0,0.00021868,2]
[378887919,1755061850176,-500.0,0.00021868,2]
[378887920,1755061850185,-500.0,0.00021917,2]
[378887921,1755061850195,-160.0,0.00021952,2]
[378887922,1755061850204,-553.32349882,0.00021973,2]
[378887923,1755061850213,-500.0,0.00021973,2]
[378887924,1755061850223,-502.09600426,0.00021973,2]
[378887925,1755061850233,-500.0,0.00021973,2]
[378887926,1755061850242,-501.27312294,0.00021973,2]
[378887927,1755061850251,-501.04783488,0.00021973,2]
[378887928,1755061850260,-500.0,0.00021973,2]
[378887929,1755061850270,-501.52730708,0.00021973,2]
[378887930,1755061850279,-500.67264257,0.00021973,2]
[378887931,1755061850289,-504.34589926,0.00021973,2]
[378887932,1755061850298,-200.0,0.00021973,2]
[378887933,1755061850307,-504.35482121,0.00021973,2]
[378887934,1755061850317,-548.37457527,0.00021987,2]
[378887935,1755061850327,-670.0059433,0.00021987,2]
[378887936,1755061850337,-670.0059433,0.00021987,2]
[378887937,1755061850346,-670.0059433,0.00021987,2]
[378887938,1755061850358,-670.0059433,0.00021987,2]
[378887939,1755061850368,-670.0059433,0.00021987,2]
[378887940,1755061850377,-670.0059433,0.00021987,2]
[378887941,1755061850387,-670.0059433,0.00021987,2]
[378887942,1755061850397,-670.0059433,0.00021987,2]
[378887943,1755061850408,-670.0059433,0.00021987,2]
[378887944,1755061850418,-670.0059433,0.00021987,2]
[378887945,1755061850428,-670.0059433,0.00021987,2]
[378887946,1755061850439,-670.0059433,0.00021987,2]
[378887948,1755061850449,-670.0059433,0.00021987,2]
[378887950,1755061850459,-670.0059433,0.00021987,2]
[378887952,1755061850470,-670.0059433,0.00021987,2]
[378887954,1755061850479,-670.0059433,0.00021987,2]
[378887956,1755061850488,-670.0059433,0.00021987,2]
[378887958,1755061850498,-670.0059433,0.00021987,2]
[378887960,1755061850507,-670.0059433,0.00021987,2]
[378887962,1755061850517,-670.0059433,0.00021987,2]
[378887964,1755061850527,-670.0059433,0.00021987,2]
[378887967,1755061850536,-73238.5586545,0.0002199,2]
[378887968,1755061850546,-12298.94,0.00022,7]
[378887970,1755061850555,-5054.49,0.00022,7]
[378887972,1755061850565,-19293.57480828,0.00022,7]
[378887975,1755061850582,-2355.03681837,0.00022,7]
[378888758,1755062329498,164.285253,0.00013699,2]
[378888770,1755062865234,159.25,0.00015,3]
[378888819,1755063032675,-782.5130868,0.000189,2]
[378888820,1755063032685,-300.0,0.00019799,2]
[378888821,1755063032699,-1200.0,0.00019799,2]
[378888822,1755063032709,-44317.48691305,0.000198,2]
[378889116,1755063041384,-1946.24,0.000198,2]
[378889348,1755063044508,-1964.68448336,0.000198,2]
[378889350,1755063044517,-1214.29677305,0.000199,2]
[378889352,1755063044529,-626.35761447,0.000199,2]
[378889588,1755063046884,-460.0,0.000199,2]
[378894552,1755063333044,164.285253,0.00013699,2]
[378894562,1755064091919,3886.0,0.00023,30]
[378894594,1755064236728,-286.6611966,0.000198,2]
[378894595,1755064236737,-300.0,0.00019899,2]
[378894596,1755064236747,-331.0,0.00019899,2]
[378894597,1755064236756,-11009.0549034,0.000199,2]
[378894609,1755064236853,-937.54470191,0.000199,2]
[378894611,1755064236864,-281.95768232,0.000199,2]
[378894712,1755064237790,-4899.38021425,0.000199,2]
[378894715,1755064237803,-25480.70388771,0.000199,2]
[378894717,1755064237813,-6009.00629604,0.0002,2]
[378894719,1755064237822,-160.0,0.0002,3]
[378894722,1755064237832,-241.095121,0.00020085,2]
[378894724,1755064237841,-200.0,0.00020297,15]
[378894726,1755064237850,-200.0,0.00020297,15]
[378894728,1755064237859,-200.0,0.00020297,15]
[378894730,1755064237869,-200.0,0.00020297,15]
[378894732,1755064237878,-200.0,0.00020297,15]
[378894734,1755064237887,-160.0,0.00020889,2]
[378894736,1755064237896,-843.29866057,0.00020889,2]
[378894738,1755064237905,-528.09767282,0.00020889,2]
[378894739,1755064237914,-160.0,0.00020889,2]
[378894741,1755064237923,-232.03317797,0.00020889,2]
[378894743,1755064237933,-417.15472785,0.00020889,2]
[378894745,1755064237942,-216.72950928,0.00020889,2]
[378894747,1755064237951,-160.0,0.00020889,2]
[378894749,1755064237960,-160.0,0.00020889,2]
[378894751,1755064237969,-461.84428375,0.00020889,2]
[378894753,1755064237978,-160.0,0.00020889,2]
[378894755,1755064237987,-160.0,0.00020889,2]
[378894757,1755064237997,-215.55264861,0.00020889,2]
[378894759,1755064238006,-160.0,0.00020889,2]
[378894761,1755064238015,-521.6753912,0.000209,2]
[378894763,1755064238029,-151.0,0.00020915,2]
[378894765,1755064238038,-151.0,0.00020915,2]
[378894767,1755064238047,-151.0,0.00020915,2]
[378894769,1755064238057,-11589.36803198,0.00020915,2]
[378894771,1755064238067,-500.0,0.00021,2]
[378894773,1755064238076,-636.0,0.00021349,2]
[378894775,1755064238086,-2151.0,0.00021349,2]
[378894777,1755064238096,-972.0,0.00021349,2]
[378894779,1755064238105,-2000.0,0.000215,5]
[378894781,1755064238115,-417.15472785,0.00021645,10]
[378894783,1755064238124,-215.55264861,0.00021645,10]
[378894785,1755064238133,-3038.06,0.00021654,2]
[378894787,1755064238142,-42608.6413895,0.00021655,2]
[378894789,1755064238151,-420.0,0.0002167,2]
[378894791,1755064238160,-823.97,0.000217,2]
[378894792,1755064238171,-163.75752742,0.000219,3]
[378894794,1755064238180,-500.0,0.00021917,2]
[378894796,1755064238189,-151.0,0.00022,7]
[378894807,1755064238337,-153.317136,0.00022,7]
[378894809,1755064238347,-169.0,0.00022,2]
[378894811,1755064238357,-290.0,0.00022,2]
[378894813,1755064238367,-302.04890064,0.00022184,2]
[378894815,1755064238375,-160.0,0.00022188,2]
[378894817,1755064238385,-290.0,0.00022192,7]
[378894819,1755064238394,-158.46101566,0.00022256,2]
[378894821,1755064238403,-500.0,0.00022256,2]
[378894823,1755064238412,-500.0,0.00022256,2]
[378894825,1755064238421,-500.0,0.00022256,2]
[378894827,1755064238430,-500.0,0.00022271,2]
[378894829,1755064238441,-200.0,0.00022284,15]
[378894830,1755064238450,-200.0,0.00022284,15]
[378894832,1755064238460,-200.0,0.00022284,15]
[378894833,1755064238469,-200.0,0.00022284,15]
[378894835,1755064238478,-200.0,0.00022284,15]
[378894836,1755064238487,-200.0,0.00022284,15]
[378894837,1755064238497,-200.0,0.00022284,15]
[378894838,1755064238506,-500.0,0.00022284,15]
[378894839,1755064238516,-500.0,0.00022284,15]
[378894840,1755064238527,-198.285,0.00022511,2]
[378894841,1755064238536,-500.0,0.00022558,15]
[378894842,1755064238545,-500.0,0.00022558,15]
[378894843,1755064238555,-169.05348582,0.00022618,2]
[378894844,1755064238565,-158.776951,0.00022639,7]
[378894845,1755064238574,-260.0,0.00022735,2]
[378894846,1755064238584,-302.04890062,0.00022776,2]
[378894847,1755064238593,-1000.0,0.00022804,2]
[378894848,1755064238603,-1000.0,0.00022804,2]
[378894849,1755064238612,-1000.0,0.00022804,2]
[378894850,1755064238622,-1000.0,0.00022819,2]
[378894852,1755064238631,-500.0,0.00022832,15]
[378894853,1755064238640,-500.0,0.00022832,15]
[378894854,1755064238650,-162.90863975,0.00022849,2]
[378894856,1755064238659,-162.90863974,0.00022959,2]
[378894857,1755064238670,-150.35,0.00022963,3]
[378894858,1755064238679,-235.65080887,0.00022973,2]
[378894860,1755064238688,-501.21322098,0.00022973,2]
[378894862,1755064238697,-500.0,0.00022973,2]
[378894864,1755064238707,-500.0,0.00022973,2]
[378894866,1755064238717,-500.0,0.00022973,2]
[378894868,1755064238726,-180.98771857,0.00022986,8]
[378894870,1755064238736,-451.07,0.0002299,3]
[378894872,1755064238745,-529.30469521,0.00022999,2]
[378894874,1755064238755,-383.86220269,0.00022999,2]
[378894876,1755064238764,-529.30469521,0.00022999,2]
[378894878,1755064238774,-529.30469521,0.00022999,2]
[378894880,1755064238783,-529.30469521,0.00022999,2]
[378894882,1755064238792,-529.30469521,0.00022999,2]
[378894884,1755064238802,-529.30469521,0.00022999,2]
[378894886,1755064238812,-529.30469521,0.00022999,2]
[378894888,1755064238821,-529.30469521,0.00022999,2]
[378894890,1755064238831,-529.30469521,0.00022999,2]
[378894892,1755064238842,-529.30469521,0.00022999,2]
[378894894,1755064238851,-529.30469521,0.00022999,2]
[378894896,1755064238861,-529.30469521,0.00022999,2]
[378894898,1755064238870,-529.30469521,0.00022999,2]
[378894900,1755064238880,-529.30469521,0.00022999,2]
[378894902,1755064238889,-529.30469521,0.00022999,2]
[378894904,1755064238898,-529.30469521,0.00022999,2]
[378894906,1755064238909,-529.30469521,0.00022999,2]
[378894908,1755064238918,-529.30469521,0.00022999,2]
[378894910,1755064238928,-555.76992997,0.00022999,2]
[378894912,1755064238937,-555.76992997,0.00022999,2]
[378894914,1755064238947,-555.76992997,0.00022999,2]
[378894916,1755064238956,-555.76992997,0.00022999,2]
[378894918,1755064238966,-555.76992997,0.00022999,2]
[378894920,1755064238975,-555.76992997,0.00022999,2]
[378894922,1755064238985,-555.76992997,0.00022999,2]
[378894924,1755064238995,-555.76992997,0.00022999,2]
[378894926,1755064239006,-555.76992997,0.00022999,2]
[378894928,1755064239015,-555.76992997,0.00022999,2]
[378894930,1755064239028,-633.57772017,0.00022999,2]
[378894932,1755064239037,-633.57772017,0.00022999,2]
[378894934,1755064239047,-2000.00579217,0.00023,2]
[378894936,1755064239056,-51671.0,0.00023,2]
[378894938,1755064239067,-71610.11676317,0.00023,7]
[378895160,1755064241082,-2025.37,0.00021654,2]
[378895163,1755064241093,-33319.63444111,0.00023,7]
[378895182,1755064241270,-9615.00199909,0.00023,7]
[378895184,1755064241282,-11931.07192188,0.00023,7]
[378895347,1755064242796,-4516.60487475,0.00023,7]
[378895349,1755064242806,-160.0,0.00023,2]
[378895351,1755064242816,-160.0,0.00023,7]
[378895353,1755064242826,-250.0,0.00023,10]
[378895355,1755064242835,-461.84428375,0.00023,7]
[378895357,1755064242845,-528.09767282,0.00023,7]
[378895359,1755064242854,-417.15472785,0.00023,7]
[378895361,1755064242863,-215.55264861,0.00023,7]
[378895363,1755064242873,-556.62684945,0.00023,3]
[378895365,1755064242882,-220.18,0.00023,2]
[378895367,1755064242892,-290.0,0.00023014,7]
[378895369,1755064242901,-250.0,0.000231,10]
[378895371,1755064242912,-500.0,0.00023106,15]
[378895373,1755064242923,-500.0,0.00023106,15]
[378895375,1755064242933,-200.0,0.0002315,7]
[378895377,1755064242942,-162.90863975,0.00023151,2]
[378895379,1755064242952,-250.0,0.000232,10]
[378895381,1755064242961,-162.90863974,0.00023205,2]
[378895383,1755064242970,-475.57,0.0002326,3]
[378895385,1755064242980,-360.0,0.00023283,2]
[378895388,1755064242990,-250.0,0.000233,10]
[378895390,1755064243001,-1500.0,0.00023352,2]
[378895392,1755064243010,-692.9908034,0.00023352,2]
[378895394,1755064243023,-807.0091966,0.00023352,2]
[378895396,1755064243038,-1500.0,0.00023352,2]
[378895399,1755064243048,-302.04890062,0.00023367,2]
[378895401,1755064243058,-1500.0,0.00023367,2]